Cogmind - Beta 12 @@@ ROGUE MODE // 2023.03.16 @ 12:51:48 Player: WM2k Result: Destroyed by Y-45 Defender with Heavy Assault Rifle Performance ------------- Evolutions (1) 500 Regions Visited (3) 600 Robots Destroyed (10) 50 Value Destroyed (201) 201 Prototype IDs (0) 0 Alien Tech Used (0) 0 Bonus (0) 0 TOTAL SCORE: 1351 Bonus ------- None Cogmind --------- Core Integrity 0/400 Matter 271/300 Energy 100/100 System Corruption 0% Temperature Cool (9) Movement Core (200) Ox3 Location -9/Materials Parts ------- > --- POWER (1) -------- (None) > --- PROPULSION (3) --- (None) > --- UTILITY (3) ------ Medium Storage Unit Targeting Computer > --- WEAPON (2) ------- (None) > --- INVENTORY (10) --- Light Treads Light Treads Aluminum Leg Carbon-fiber Leg Heat Sink Medium Battery (150) Bomb Drone Bay EM Pulse Gun Grenade Launcher Peak State ------------ > --- POWER ------------ Light Ion Engine > --- PROPULSION ------- Light Treads Wheel Wheel > --- UTILITY ---------- Medium Storage Unit Targeting Computer > --- WEAPON ----------- Battle Cannon Flak Cannon > --- INVENTORY -------- Light Treads Aluminum Leg Carbon-fiber Leg Heat Sink Medium Battery Bomb Drone Bay EM Pulse Gun Grenade Launcher [Rating: 13] Favorites ----------- Power Ion Engine Engine Ion Engine Propulsion Wheel Treads Light Treads Leg Aluminum Leg Wheel Wheel Utility Medium Storage Unit Device Terrain Scanner Storage Medium Storage Unit Processor Targeting Computer Weapon Battle Cannon Energy Gun EM Pulse Gun Energy Cannon Beam Cannon Ballistic Cannon Battle Cannon Build | -11 -10 -10 -9 ------- Run | Jun Mat Min Mat Slots Evolved 2 | . . . 2 Power . | . . . . Propulsion 1 | . . . 1 Utility 1 | . . . 1 Weapon . | . . . . Parts Attached 25 | 7 9 7 2 Power 4 | 1 . 3 . Engine 4 | 1 . 3 . Core . | . . . . Reactor . | . . . . Propulsion 9 | 2 3 2 2 Treads 1 | . . . 1 Leg 2 | . 2 . . Wheel 6 | 2 1 2 1 Hover . | . . . . Flight . | . . . . Utility 6 | 1 5 . . Device 2 | . 2 . . Storage 3 | 1 2 . . Processor 1 | . 1 . . Hackware . | . . . . Protection . | . . . . Artifact . | . . . . Weapon 6 | 3 1 2 . Energy Gun 3 | 3 . . . Energy Cannon 1 | . 1 . . Ballistic Gun . | . . . . Ballistic Cannon 2 | . . 2 . Launcher . | . . . . Special Weapon . | . . . . Impact Weapon . | . . . . Slashing Weapon . | . . . . Piercing Weapon . | . . . . Special Melee Weapon . | . . . . Unidentified Prototypes . | . . . . Parts Lost 6 | . . . 6 Power 1 | . . . 1 Propulsion 3 | . . . 3 Utility . | . . . . Weapon 2 | . . . 2 Highest Loss Streak 6 | . . . 6 To Critical Strikes . | . . . . Average Slot Usage (%) 94 | . 98 100 74 Engine 12 | . 14 14 8 Wheel 28 | . 28 28 28 Device 1 | . 6 . . Storage 13 | . 15 14 11 Processor 10 | . 4 14 11 Energy Gun 5 | . 16 2 . Energy Cannon 6 | . 11 6 . Ballistic Cannon 13 | . . 18 14 Naked Turns . | . . . . Heaviest Build 25 | 14 25 24 22 Greatest Support 36 | 26 26 26 36 Greatest Overweight (x) 3 | 1 . 1 3 Average Overweight (x) . | . . . . Largest Inventory Capacity 10 | 8 10 10 10 Average Capacity 9 | 6 8 10 10 Most Carried 10 | 6 10 10 10 Average Carried 9 | 4 8 9 9 Final Capacity 10 | 8 10 10 10 Final Carried 10 | 6 10 10 10 Class Distribution -------------------- 100% | Mutant Dominant Class ---------------- Mutant | -10/Materials Mutant | -10/Mines Mutant | -9/Materials Resources | -11 -10 -10 -9 ----------- Run | Jun Mat Min Mat Matter Collected 548 | 204 86 230 28 Remotely . | . . . . Salvage Created 275 | . 86 121 68 Parts 21 | . 5 11 5 Haulers Intercepted 2 | . 1 . 1 Recyclers Shooed . | . . . . Parts Field Recycled . | . . . . Retrieved Matter . | . . . . Parts Self-Destructed . | . . . . Prevented . | . . . . Kills | -11 -10 -10 -9 ------- Run | Jun Mat Min Mat Combat Hostiles Destroyed 7 | . 1 5 1 Guns 2 | . 1 1 . Cannons 5 | . . 4 1 Classes Destroyed 4 | . 2 2 . Builder 1 | . . 1 . Hauler 2 | . 1 . 1 Swarmer 3 | . . 3 . Grunt 4 | . 1 2 1 Best Kill Streak 3 | . 1 3 1 Combat Bots Only 3 | . 1 3 1 Max Kills in Single Turn 1 | . 1 1 1 Gunslinging . | . . . . Exploded . | . . . . Melee . | . . . . Uniques/NPCs Destroyed . | . . . . Combat | -11 -10 -10 -9 -------- Run | Jun Mat Min Mat Damage Taken 1254 | . 44 490 720 Core 556 | . 22 124 410 Absorbed by Shields . | . . . . Core Remaining (%) 70 | 100 . 41 . Volleys Fired 28 | . 7 17 4 Largest 2 | . 2 2 2 Hottest 100 | . 100 100 83 Shots Fired 56 | . 14 34 8 Gun 13 | . 7 6 . Cannon 43 | . 7 28 8 Launcher . | . . . . Special . | . . . . Kinetic 30 | . . 22 8 Thermal 13 | . 7 6 . Explosive . | . . . . Electromagnetic 13 | . 7 6 . Robot Hit Streak 5 | . 5 5 5 Robot Miss Streak 6 | . 1 6 2 Penetration Max . | . . . . Secondary Targets . | . . . . Shots Hit Robots 38 | . 11 21 6 Core Hits 22 | . 4 13 5 Critical Kills . | . . . . Critical Parts Destroyed . | . . . . Critical Strikes . | . . . . Melee Attacks . | . . . . Impact . | . . . . Slashing . | . . . . Piercing . | . . . . Sneak Attacks . | . . . . Combat Hostiles . | . . . . Follow-up Attacks . | . . . . Damage Inflicted 629 | . 160 376 93 Guns 148 | . 90 58 . Cannons 470 | . 70 318 82 Explosions . | . . . . Melee . | . . . . Ramming 11 | . . . 11 Kinetic 331 | . . 249 82 Thermal 139 | . 70 69 . Explosive . | . . . . Electromagnetic 148 | . 90 58 . Impact . | . . . . Slashing . | . . . . Piercing . | . . . . Highest Corruption 1 | . . 1 . Average Corruption 1 | . . 1 . Corruption Purged . | . . . . Corruption Blocked . | . . . . Effects 2 | . . 2 . Message Errors 1 | . . 1 . Energy Discharges 1 | . . 1 . Overload Shots . | . . . . Overflow Damage 4 | . . 4 . Projectiles 4 | . . 4 . Explosions . | . . . . Melee . | . . . . Knockbacks 12 | . . 10 2 Impact . | . . . . Kinetic 11 | . . 9 2 Secondary 1 | . . 1 . Self-Inflicted Damage 5 | . . . 5 Shots . | . . . . Rammed 3 | . . . 3 Targets Rammed 3 | . . . 3 Kicked . | . . . . Crushed . | . . . . Highest Temperature 213 | . 213 192 54 Average Temperature 60 | . 93 52 22 Received Heat Transfer 249 | . 24 57 168 Siege Activations . | . . . . Robots Corrupted . | . . . . Combat Hostiles . | . . . . Parts Fried . | . . . . Impact Corruptions . | . . . . Robots Melted . | . . . . Combat Hostiles . | . . . . Parts Melted . | . . . . Heat Transferred 296 | . 148 148 . Parts Sabotaged . | . . . . Parts Stolen . | . . . . Parts Stripped . | . . . . Power Chain Reactions . | . . . . Missiles Intercepted . | . . . . Alert | -11 -10 -10 -9 ------- Run | Jun Mat Min Mat Peak Influence 206 | . 85 206 73 Initial 33 | . . 33 1 Average 66 | . 39 102 29 Maximum Alert Level 1 | . . 1 . Low Security (%) 91 | 100 100 82 100 Level 1 8 | . . 17 . Level 2 . | . . . . Level 3 . | . . . . Level 4 . | . . . . Level 5 . | . . . . High Security . | . . . . Max Security . | . . . . Squads Dispatched 1 | . 1 . . Investigation 1 | . 1 . . Extermination . | . . . . Reinforcement . | . . . . Assault . | . . . . Garrison . | . . . . Intercept . | . . . . Searches Triggered . | . . . . Construction Impeded . | . . . . Haulers Reinforced . | . . . . Active Scanning Responses . | . . . . Cargo Convoy Interrupts . | . . . . Stealth | -11 -10 -10 -9 --------- Run | Jun Mat Min Mat Distress Signals . | . . . . Communications Jammed . | . . . . Distress Signals . | . . . . Times Spotted 34 | . 9 13 12 Peak Tracking Total 9 | . 5 5 9 Tactical Retreats 5 | . 1 2 2 Traps | -11 -10 -10 -9 ------- Run | Jun Mat Min Mat Traps Triggered 2 | . 1 1 . Indirectly . | . . . . Trap Hack Attempts . | . . . . Triggered . | . . . . Disarmed . | . . . . Reprogrammed . | . . . . Reused . | . . . . Traps Extracted . | . . . . Installed . | . . . . Triggered . | . . . . Machines | -11 -10 -10 -9 ---------- Run | Jun Mat Min Mat Machines Disabled . | . . . . Max in Single Turn . | . . . . Machines Repaired . | . . . . Machines Sabotaged . | . . . . Overloaded Fab Kills . | . . . . Hacking | -11 -10 -10 -9 --------- Run | Jun Mat Min Mat Machines Accessed 4 | . 2 2 . Terminals 1 | . 1 . . Fabricators . | . . . . Repair Stations . | . . . . Recycling Units 1 | . 1 . . Scanalyzers . | . . . . Garrison Access . | . . . . Total Hacks 6 | . 4 2 . Successful 6 | . 4 2 . Failed . | . . . . Catastrophic . | . . . . Database Lockouts . | . . . . Manual . | . . . . Terminals 2 | . 2 . . Fabricators . | . . . . Repair Stations . | . . . . Recycling Units 2 | . 2 . . Scanalyzers . | . . . . Garrison Access . | . . . . Terminal Hacks 4 | . 2 2 . Open Door 2 | . . 2 . Branch Access Points 1 | . 1 . . Zone Layout 1 | . 1 . . Fabricator Hacks . | . . . . Repair Station Hacks . | . . . . Recycling Unit Hacks 2 | . 2 . . Report Inventory 1 | . 1 . . Retrieve Components 1 | . 1 . . Scanalyzer . | . . . . Garrison Access Hacks . | . . . . Unauthorized Hacks . | . . . . Terminals . | . . . . Fabricators . | . . . . Repair Stations . | . . . . Recycling Units . | . . . . Scanalyzers . | . . . . Garrison Access . | . . . . Data Cores Recovered . | . . . . Used . | . . . . Hacking Detections 1 | . 1 . . Full Trace Events . | . . . . Feedback Events . | . . . . Feedback Blocked . | . . . . Robot Schematics Acquired . | . . . . Robots Built . | . . . . Authchips . | . . . . Time . | . . . . Total Robot Build Rating . | . . . . Part Schematics Acquired . | . . . . Parts Built . | . . . . Authchips . | . . . . Time . | . . . . Total Part Build Rating . | . . . . Parts Repaired . | . . . . Time . | . . . . Parts Recycled . | . . . . Recycled Matter . | . . . . Retrieved Matter . | . . . . Retrieved Components 2 | . 2 . . Parts Scanalyzed . | . . . . Part Schematics Acquired . | . . . . Parts Damaged . | . . . . Bothacking | -11 -10 -10 -9 ------------ Run | Jun Mat Min Mat Used RIF Installer . | . . . . Robots Hacked . | . . . . Non-combat . | . . . . Combat . | . . . . Robot Hacks Applied . | . . . . Relay Couplers Released . | . . . . Fabnet Peak Effective % . | . . . . Robots Rewired . | . . . . Allies Hacked . | . . . . Hacks Repelled . | . . . . Allies | -11 -10 -10 -9 -------- Run | Jun Mat Min Mat Total Allies . | . . . . Largest Group . | . . . . Highest-Rated Group . | . . . . Highest-Rated Ally . | . . . . Total Orders . | . . . . Ally Attacks . | . . . . Total Damage . | . . . . Kills . | . . . . Allies Corrupted . | . . . . Allies Melted . | . . . . Intel | -11 -10 -10 -9 ------- Run | Jun Mat Min Mat Robot Analysis Total . | . . . . Derelict Logs Recovered 1 | . . 1 . Drone Launches . | . . . . Drone Recoveries . | . . . . Exploration | -11 -10 -10 -9 ------------- Run | Jun Mat Min Mat Turns Passed 1002 | 69 237 507 189 Spaces Moved 916 | 61 201 472 182 Core 12 | 8 . . 4 Treads . | . . . . Legs . | . . . . Wheels 904 | 53 201 472 178 Hover . | . . . . Flight . | . . . . Fastest Speed 50 | 50 90 90 86 Average Speed 90 | 85 90 91 89 Slowest Speed 200 | 100 90 95 200 Overloaded Moves . | . . . . Propulsion Burnouts . | . . . . Robots Hopped . | . . . . Cave-ins Triggered . | . . . . Exploration Rate (%) 37 | 5 43 83 19 Regions Visited 3 Branch Regions 1 Pre-discovered Areas 1 | . . 1 . Known Exits Taken 1 | . 1 . . Unknown Exits Taken 2 | 1 . 1 . Scrap Searched 1 | . . 1 . Spaces Dug . | . . . . Terrain Destroyed 3 | . . 3 . Melee . | . . . . Projectile 3 | . . 3 . AOE . | . . . . Terrain Rammed . | . . . . Walls Destroyed . | . . . . Machines Disabled . | . . . . Actions | -11 -10 -10 -9 --------- Run | Jun Mat Min Mat Total 1034 | 74 241 519 200 Wait 25 | . 11 10 4 Move 913 | 60 200 471 182 Hop . | . . . . Pick Up 22 | 7 8 4 3 Fast Attach 10 | 5 3 2 . Attach 3 | 1 . 1 1 Detach . | . . . . Swap 12 | 1 6 4 1 Drop 18 | . 6 10 2 Fire 28 | . 7 17 4 Melee . | . . . . Ram 3 | . . . 3 Kick . | . . . . Crush . | . . . . Escape Stasis . | . . . . Rewire . | . . . . Trap . | . . . . Miscellaneous . | . . . . Route ------- -11/Junkyard -10/Materials (discovered 2 exits: [*Mat] / *Min) -10/Mines -9/Materials History --------- Turn | Location | Event 7 | -11/Junkyard | Discovered new exit (range 16) 70 | -11/Junkyard | Entered Materials 224 | -10/Materials | Discovered new exit (range 12) 267 | -10/Materials | Discovered new exit (range 15) 267 | -10/Materials | Identified exit to Mines 307 | -10/Materials | Entered Mines 315 | -10/Mines | Build established: Mutant 391 | -10/Mines | A weapon hastily lodged in a ceiling crevice suddenly fell to the ground 415 | -10/Mines | Met a Derelict bent on vengeance 467 | -10/Mines | Found the Drone Emporium 471 | -10/Mines | Found Prototype Device 483 | -10/Mines | Learned location of Storage (-8) 490 | -10/Mines | Discovered new exit (range 9) 535 | -10/Mines | Assembled infested the area 540 | -10/Mines | Met a Derelict who couldn't figure out how to use a Trap Extractor 627 | -10/Mines | Core integrity fell below 50% 814 | -10/Mines | Entered Materials 814 | -9/Materials | Evolved 2 slots: Propulsion x1, Utility x1 994 | -9/Materials | Core integrity fell below 50% 999 | -9/Materials | Core integrity fell below 20% 1003 | -9/Materials | Destroyed by Y-45 Defender with Heavy Assault Rifle Last Messages --------------- 00817_ Acquired Lgt. Treads. 00824_ Acquired Com. Wheel. 00845_ A-02 Transporter destroyed. 00865_ R-06 Scavenger collects Weight Redist. System. 00888_ G-47 Trooper knocked back. 00894_ G-47 Trooper destroyed. 00897_ Acquired 28 matter. 00929_ Battle Cannon destroyed. 00943_ K-01 Serf collects debris. 00953_ Flak Cannon destroyed. 00954_ K-01 Serf collects debris. 00965_ S-10 Pest destroyed. 00967_ Lgt. Ion Engine destroyed. 00967_ Wheel destroyed. 00970_ K-01 Serf collects debris. 00985_ Wheel destroyed. 00986_ Slammed into S-10 Pest. 00990_ Slammed into G-34 Mercenary. 00995_ Com. Wheel destroyed. 00997_ S-10 Pest destroyed. Map ----- +----------------------------------------------------+ | ????????# #?# #???????????? | | ????????# #?# """ #???????????? | | +???????# #?# """ #???????????? | | #???????# #?# """ #???????????? | | #???????# #?# #???????????? | | ##???????# #?# """ #???????????? | | #????????# #?# """ #???????????? | | ?????????# !#?# """ #???????????? | | ?????????# #?# #???????????? | | ?????????# %#?###########??????????? | | ?????????# #????# ??????????? | | ?????????# #????# """ ???####### | | ?######### ###### """ #??# !! # | | ?# == + """ #??# !! # | | ??# == # #### ! # | | ??# = # ! "" # + # | | ### """"" + T" # # # | | [ """"" # "" # # # | | [ """"" #?? ?# + # | | ! #?###/##?# # # | | ! ### Y ### # # | | ! u % # ! # | | ! % Y Y # | | ### #########+##+#### #### # # | | ?# ??????# ## s##??#+####### | | ??????# ## @#???????????? | | ???????# """ """ ## ; ??????????? | | ???????# """ """ ## # "????????? | | ## ?????????# """ """ ## # """??????? | | ????????????# """ """ ## #? ?????? | | ????????????# ## #?? ????? | | ????????????# ! ?## #??? =[ ???? | | ????????????#?#######??# #??? =[ #??? | | ???????????????????????# #???? = #??? | | ???????????????????????# #?????####??? | | ???????????????????????# #???????????? | | ???????????????????????# ????????????? | | ???????????????????????# ????????????? | | ???????????????????????? ????????????? | | ???????????????????????? ????????????? | | ???????????????????????? ????????????? | | ??????????????????????????????????????? | | ??????????????????????????????????????? | | ??????????????????????????????????????? | | ??????????????????????????????????????? | | ??????????????????????????????????????? | | ??????????????????????????????????????? | | ??????????????????????????????????????? | | ??????????????????????????????????????? | | ??????????????????????????????????????? | +----------------------------------------------------+ Best States ------------- Heat Dissipation 28 Energy Generation 10 Energy Capacity 250 Matter Stores 300 Matter Capacity 300 Sight Range 16 Terrain Scan Range 14 Terrain Scan Density 10 Evasion (%) 42 Targeting Accuracy 5 Item Schematics ----------------- None Robot Schematics ------------------ None Fabricated ------------ Nothing Alien Tech Used ----------------- None Achievements -------------- None Challenges ------------ None Game ------ Seed RagnarokMicrowarpHammer Manual? 0 Play Time 00:35:50 Cumulative 21.8 hours Start 2023.03.16 @ 10:15:08 End 2023.03.16 @ 12:51:48 Sessions 3 Manual Loads 0 Difficulty Rogue Special Mode None Game No. 14 Rogue 14 Adventurer 0 Explorer 0 Win Type - Total 0 Types 0/0/0/0/0/0/0/0/0 Lore% 7 Gallery% 17 Achievement% 14 Wizard Run 0 Options --------- ASCII 1 Keyboard 0 Movement Vi Keybinds 0 Fullscreen 1 Font 12/Fuzzy Map View 76x56 Tactical HUD 1 Map Filters NONE Filters NONE Steam 1 RUN: cac903fa-f993-4fe7-9a65-a6dd191b3dee